[Event "Early-Titled-Tuesday-Blitz-February-20-2024"]
[Site "Chess.com"]
[Date "2024.02.20"]
[Round "3"]
[White "GoltsevDmitry2000"]
[Black "viktorgen2021"]
[Result "1-0"]
[WhiteElo "2787"]
[BlackElo "2552"]
[TimeControl "180+1"]
[EndTime "8:24:24 PST"]
[Termination "GoltsevDmitry2000 won by resignation"]

1. e4 {[%clk 0:03:00]} 1... g6 {[%clk 0:02:59.6]} 2. h4 {[%clk 0:03:00.1]} 2...
h5 {[%clk 0:02:56.9]} 3. d4 {[%clk 0:02:59.9]} 3... Bg7 {[%clk 0:02:57.4]} 4. c3
{[%clk 0:02:58.6]} 4... d6 {[%clk 0:02:58]} 5. Nf3 {[%clk 0:02:58.4]} 5... Nf6
{[%clk 0:02:57.3]} 6. Bd3 {[%clk 0:02:58.8]} 6... Bg4 {[%clk 0:02:57.2]} 7. Qb3
{[%clk 0:02:58.7]} 7... Qc8 {[%clk 0:02:31.7]} 8. Ng5 {[%clk 0:02:57.8]} 8...
O-O {[%clk 0:02:12.9]} 9. f3 {[%clk 0:02:54.8]} 9... Be6 {[%clk 0:02:02.5]} 10.
Nxe6 {[%clk 0:02:54.6]} 10... Qxe6 {[%clk 0:02:02.5]} 11. Qxb7 {[%clk
0:02:53.1]} 11... c6 {[%clk 0:01:42]} 12. Qxa8 {[%clk 0:02:52]} 12... Qd7 {[%clk
0:01:42.4]} 13. d5 {[%clk 0:02:45.2]} 13... Qc7 {[%clk 0:01:34.1]} 14. Be3
{[%clk 0:02:38.7]} 14... c5 {[%clk 0:01:33.1]} 15. Na3 {[%clk 0:02:37.6]} 15...
e6 {[%clk 0:01:20.6]} 16. Nb5 {[%clk 0:02:32.4]} 1-0

[Event "Early-Titled-Tuesday-Blitz-February-20-2024"]
[Site "Chess.com"]
[Date "2024.02.20"]
[Round "3"]
[White "AlexeiShirov"]
[Black "alpope"]
[Result "1-0"]
[WhiteElo "2842"]
[BlackElo "2496"]
[TimeControl "180+1"]
[EndTime "8:24:40 PST"]
[Termination "AlexeiShirov won by checkmate"]

1. e4 {[%clk 0:03:00.9]} 1... d6 {[%clk 0:02:59.7]} 2. d4 {[%clk 0:03:00]} 2...
Nf6 {[%clk 0:02:59.9]} 3. Nc3 {[%clk 0:03:00]} 3... e5 {[%clk 0:02:59.8]} 4. Nf3
{[%clk 0:02:58.7]} 4... Nbd7 {[%clk 0:02:59.2]} 5. g4 {[%clk 0:02:58.8]} 5...
Nxg4 {[%clk 0:02:58.3]} 6. Rg1 {[%clk 0:02:58.8]} 6... Ngf6 {[%clk 0:02:58.4]}
7. Bc4 {[%clk 0:02:58.6]} 7... h6 {[%clk 0:02:58.9]} 8. Qd3 {[%clk 0:02:56.3]}
8... c6 {[%clk 0:02:57.5]} 9. dxe5 {[%clk 0:02:51.3]} 9... dxe5 {[%clk 0:02:50]}
10. Be3 {[%clk 0:02:50.9]} 10... b5 {[%clk 0:02:38.8]} 11. Bb3 {[%clk 0:02:50]}
11... Qc7 {[%clk 0:02:37.4]} 12. a4 {[%clk 0:02:37.6]} 12... b4 {[%clk
0:02:21.9]} 13. Ne2 {[%clk 0:02:27.9]} 13... a5 {[%clk 0:02:22]} 14. Qc4 {[%clk
0:02:22.1]} 14... Nb8 {[%clk 0:02:06.3]} 15. Nxe5 {[%clk 0:02:22]} 15... Be6
{[%clk 0:02:03.8]} 16. Qd4 {[%clk 0:02:03.2]} 16... c5 {[%clk 0:02:03.5]} 17.
Qd3 {[%clk 0:02:03]} 17... Qxe5 {[%clk 0:01:58.5]} 18. O-O-O {[%clk 0:02:03.6]}
18... Bxb3 {[%clk 0:01:39.2]} 19. Qd8# {[%clk 0:02:02.3]} 1-0

[Event "Early-Titled-Tuesday-Blitz-February-20-2024"]
[Site "Chess.com"]
[Date "2024.02.20"]
[Round "3"]
[White "Kostya0705"]
[Black "esrosenberg"]
[Result "1-0"]
[WhiteElo "2638"]
[BlackElo "2421"]
[TimeControl "180+1"]
[EndTime "8:24:50 PST"]
[Termination "Kostya0705 won by resignation"]

1. e4 {[%clk 0:03:00.9]} 1... e6 {[%clk 0:02:59.6]} 2. d4 {[%clk 0:03:00.7]}
2... d5 {[%clk 0:03:00.3]} 3. Nc3 {[%clk 0:02:58.4]} 3... Bb4 {[%clk 0:02:59.9]}
4. e5 {[%clk 0:02:58.5]} 4... c5 {[%clk 0:03:00.3]} 5. a3 {[%clk 0:02:59.1]}
5... Bxc3+ {[%clk 0:03:00.7]} 6. bxc3 {[%clk 0:03:00]} 6... Ne7 {[%clk
0:03:00.7]} 7. Nf3 {[%clk 0:02:59.2]} 7... b6 {[%clk 0:03:00.2]} 8. h4 {[%clk
0:02:59.5]} 8... h6 {[%clk 0:02:57.5]} 9. h5 {[%clk 0:02:58.6]} 9... Bd7 {[%clk
0:02:54.4]} 10. Bd3 {[%clk 0:02:57.6]} 10... c4 {[%clk 0:02:52.5]} 11. Bf1
{[%clk 0:02:53.8]} 11... Ba4 {[%clk 0:02:53.2]} 12. Nh4 {[%clk 0:02:53.3]} 12...
Nbc6 {[%clk 0:02:47.7]} 13. Qg4 {[%clk 0:02:53]} 13... Rh7 {[%clk 0:02:29.4]}
14. Ra2 {[%clk 0:02:51.9]} 14... Kd7 {[%clk 0:02:28.3]} 15. Rh3 {[%clk
0:02:51.3]} 15... Kc7 {[%clk 0:02:15.2]} 16. Rf3 {[%clk 0:02:48.9]} 16... Qg8
{[%clk 0:02:13.4]} 17. Be2 {[%clk 0:02:45.2]} 17... Rf8 {[%clk 0:02:13]} 18. Rb2
{[%clk 0:02:40.5]} 18... Nd8 {[%clk 0:02:11.8]} 19. Rg3 {[%clk 0:02:34.8]} 19...
Bd7 {[%clk 0:02:07.1]} 20. f4 {[%clk 0:02:33.3]} 20... Nf5 {[%clk 0:02:06.6]}
21. Nxf5 {[%clk 0:02:27.3]} 21... exf5 {[%clk 0:02:06.9]} 22. Qh4 {[%clk
0:02:27.5]} 22... Be6 {[%clk 0:02:06.8]} 23. Qe7+ {[%clk 0:02:26.2]} 23... Kb8
{[%clk 0:01:58.9]} 24. Bf3 {[%clk 0:02:25.3]} 24... Re8 {[%clk 0:01:58.5]} 25.
Qd6+ {[%clk 0:02:24.7]} 25... Kb7 {[%clk 0:01:55.4]} 26. Bxd5+ {[%clk
0:02:24.2]} 26... Bxd5 {[%clk 0:01:56]} 27. Qxd5+ {[%clk 0:02:25.1]} 27... Nc6
{[%clk 0:01:56.5]} 28. Qd7+ {[%clk 0:02:22.5]} 28... Kb8 {[%clk 0:01:54.1]} 29.
Qxc6 {[%clk 0:02:22]} 29... Rc8 {[%clk 0:01:55]} 30. Qd6+ {[%clk 0:02:18.3]}
30... Kb7 {[%clk 0:01:55.3]} 31. Be3 {[%clk 0:02:16.8]} 31... Qe8 {[%clk
0:01:55.1]} 32. d5 {[%clk 0:02:15.2]} 32... Qa4 {[%clk 0:01:54.1]} 33. Bxb6
{[%clk 0:02:10.4]} 33... Qxa3 {[%clk 0:01:53.2]} 34. Qxa3 {[%clk 0:02:09.4]} 1-0

[Event "Early-Titled-Tuesday-Blitz-February-20-2024"]
[Site "Chess.com"]
[Date "2024.02.20"]
[Round "3"]
[White "tsaruk_maks"]
[Black "TioCridineno"]
[Result "1-0"]
[WhiteElo "2736"]
[BlackElo "2406"]
[TimeControl "180+1"]
[EndTime "8:25:14 PST"]
[Termination "tsaruk_maks won by resignation"]

1. e4 {[%clk 0:03:00.9]} 1... c5 {[%clk 0:02:57.9]} 2. Nf3 {[%clk 0:02:57]} 2...
Nc6 {[%clk 0:02:57.9]} 3. d4 {[%clk 0:02:57.5]} 3... cxd4 {[%clk 0:02:57.9]} 4.
Nxd4 {[%clk 0:02:58.4]} 4... Nf6 {[%clk 0:02:58.3]} 5. Nc3 {[%clk 0:02:58.7]}
5... e5 {[%clk 0:02:58.8]} 6. Ndb5 {[%clk 0:02:59.2]} 6... d6 {[%clk 0:02:58.9]}
7. Bg5 {[%clk 0:02:59.8]} 7... a6 {[%clk 0:02:59.2]} 8. Na3 {[%clk 0:02:55.1]}
8... b5 {[%clk 0:02:59.3]} 9. Nd5 {[%clk 0:02:52.3]} 9... Be7 {[%clk 0:02:59.2]}
10. Bxf6 {[%clk 0:02:52.1]} 10... Bxf6 {[%clk 0:02:59.9]} 11. c3 {[%clk
0:02:51.6]} 11... O-O {[%clk 0:02:59.5]} 12. Nc2 {[%clk 0:02:50.6]} 12... Bg5
{[%clk 0:02:59.7]} 13. a4 {[%clk 0:02:49.7]} 13... bxa4 {[%clk 0:02:59.5]} 14.
Rxa4 {[%clk 0:02:47.2]} 14... a5 {[%clk 0:02:59.9]} 15. Bc4 {[%clk 0:02:45.3]}
15... Rb8 {[%clk 0:03:00.2]} 16. b3 {[%clk 0:02:44.7]} 16... Kh8 {[%clk
0:03:00.5]} 17. O-O {[%clk 0:02:44.2]} 17... g6 {[%clk 0:03:00.8]} 18. Nce3
{[%clk 0:02:42.2]} 18... Bh6 {[%clk 0:03:00.5]} 19. Qd3 {[%clk 0:02:36.4]} 19...
Bd7 {[%clk 0:03:00.2]} 20. Bb5 {[%clk 0:02:30.2]} 20... f5 {[%clk 0:02:59.3]}
21. Bxc6 {[%clk 0:02:24.2]} 21... Bxc6 {[%clk 0:02:58.7]} 22. exf5 {[%clk
0:02:22.6]} 22... Qg5 {[%clk 0:02:51.9]} 23. Rg4 {[%clk 0:02:08.5]} 23... Qh5
{[%clk 0:02:48.7]} 24. fxg6 {[%clk 0:02:07.5]} 24... hxg6 {[%clk 0:02:44.6]} 25.
Rxg6 {[%clk 0:02:07.9]} 25... Rg8 {[%clk 0:02:29.7]} 26. Rxg8+ {[%clk
0:02:05.9]} 26... Rxg8 {[%clk 0:02:28.8]} 27. Ne7 {[%clk 0:01:53.9]} 27... Bxe3
{[%clk 0:02:14.4]} 28. Nxg8 {[%clk 0:01:47.7]} 28... Qg4 {[%clk 0:02:12.6]} 29.
Qh7+ {[%clk 0:01:46.8]} 29... Kxh7 {[%clk 0:02:07.6]} 30. Nf6+ {[%clk
0:01:47.7]} 30... Kg6 {[%clk 0:02:07.2]} 31. Nxg4 {[%clk 0:01:48.6]} 31... Bb6
{[%clk 0:02:06]} 32. Rd1 {[%clk 0:01:48.1]} 32... Bc5 {[%clk 0:02:05.6]} 33. Ne3
{[%clk 0:01:40.8]} 33... a4 {[%clk 0:02:00]} 34. b4 {[%clk 0:01:38.3]} 1-0

[Event "Early-Titled-Tuesday-Blitz-February-20-2024"]
[Site "Chess.com"]
[Date "2024.02.20"]
[Round "3"]
[White "sofaceindisguise"]
[Black "Chessmissile07"]
[Result "1-0"]
[WhiteElo "2662"]
[BlackElo "2882"]
[TimeControl "180+1"]
[EndTime "8:25:23 PST"]
[Termination "sofaceindisguise won by checkmate"]

1. d4 {[%clk 0:03:00.9]} 1... a6 {[%clk 0:03:00.9]} 2. e4 {[%clk 0:03:00.8]}
2... e6 {[%clk 0:02:59]} 3. Nf3 {[%clk 0:03:00.7]} 3... d5 {[%clk 0:02:58.1]} 4.
Nbd2 {[%clk 0:02:56.5]} 4... dxe4 {[%clk 0:02:42.7]} 5. Nxe4 {[%clk 0:02:56.5]}
5... Be7 {[%clk 0:02:43.6]} 6. Bd3 {[%clk 0:02:56.3]} 6... Nf6 {[%clk
0:02:43.1]} 7. Qe2 {[%clk 0:02:55.9]} 7... Bd7 {[%clk 0:02:38.9]} 8. Bg5 {[%clk
0:02:53.2]} 8... Bc6 {[%clk 0:02:37.4]} 9. Bxf6 {[%clk 0:02:53.2]} 9... Bxf6
{[%clk 0:02:37.3]} 10. O-O-O {[%clk 0:02:53.4]} 10... Nd7 {[%clk 0:02:35.6]} 11.
Kb1 {[%clk 0:02:52.1]} 11... O-O {[%clk 0:02:33.4]} 12. g4 {[%clk 0:02:51]}
12... Be7 {[%clk 0:02:26.5]} 13. g5 {[%clk 0:02:50]} 13... Nb6 {[%clk
0:02:15.2]} 14. Ne5 {[%clk 0:02:45.3]} 14... Bxg5 {[%clk 0:01:58.4]} 15. Rhg1
{[%clk 0:02:43.2]} 15... Bh6 {[%clk 0:01:58.5]} 16. Qh5 {[%clk 0:02:39.9]} 16...
Bxe4 {[%clk 0:01:47.9]} 17. Bxe4 {[%clk 0:02:37.2]} 17... Kh8 {[%clk 0:01:05.1]}
18. Rxg7 {[%clk 0:02:34.8]} 18... Kxg7 {[%clk 0:00:56.6]} 19. Rg1+ {[%clk
0:02:34.6]} 19... Kh8 {[%clk 0:00:45.7]} 20. Qxh6 {[%clk 0:02:34.1]} 20... f5
{[%clk 0:00:44.6]} 21. Ng6+ {[%clk 0:02:30.2]} 21... Kg8 {[%clk 0:00:37.8]} 22.
Nxf8+ {[%clk 0:02:30.2]} 22... Kf7 {[%clk 0:00:38.3]} 23. Qxe6+ {[%clk
0:02:30.7]} 23... Kxf8 {[%clk 0:00:38.4]} 24. Rg8# {[%clk 0:02:31.3]} 1-0

[Event "Early-Titled-Tuesday-Blitz-February-20-2024"]
[Site "Chess.com"]
[Date "2024.02.20"]
[Round "3"]
[White "Grischuk"]
[Black "Abund"]
[Result "1-0"]
[WhiteElo "3109"]
[BlackElo "2775"]
[TimeControl "180+1"]
[EndTime "8:25:25 PST"]
[Termination "Grischuk won by resignation"]

1. d4 {[%clk 0:03:00.9]} 1... d5 {[%clk 0:03:00]} 2. Nf3 {[%clk 0:02:59.6]} 2...
Nf6 {[%clk 0:03:00.2]} 3. Bg5 {[%clk 0:02:59.7]} 3... Ne4 {[%clk 0:02:56.2]} 4.
Bh4 {[%clk 0:02:59.8]} 4... c5 {[%clk 0:02:56.1]} 5. e3 {[%clk 0:02:59.3]} 5...
Nc6 {[%clk 0:02:52.5]} 6. Nbd2 {[%clk 0:02:58.7]} 6... Nxd2 {[%clk 0:02:51]} 7.
Qxd2 {[%clk 0:02:57.6]} 7... Bg4 {[%clk 0:02:43.1]} 8. dxc5 {[%clk 0:02:50.4]}
8... Bxf3 {[%clk 0:02:42.8]} 9. gxf3 {[%clk 0:02:51.3]} 9... Qd7 {[%clk
0:02:43]} 10. O-O-O {[%clk 0:02:46.1]} 10... e6 {[%clk 0:02:42.6]} 11. c4 {[%clk
0:02:44.4]} 11... Ne5 {[%clk 0:02:10.9]} 12. cxd5 {[%clk 0:02:11.3]} 12... Bxc5
{[%clk 0:01:38.2]} 13. dxe6 {[%clk 0:01:40]} 13... Qxe6 {[%clk 0:01:05]} 14.
Qd8+ {[%clk 0:01:36]} 1-0

[Event "Early-Titled-Tuesday-Blitz-February-20-2024"]
[Site "Chess.com"]
[Date "2024.02.20"]
[Round "3"]
[White "zajka-molotok"]
[Black "DuleMudule"]
[Result "0-1"]
[WhiteElo "2500"]
[BlackElo "2846"]
[TimeControl "180+1"]
[EndTime "8:25:34 PST"]
[Termination "DuleMudule won by resignation"]

1. d4 {[%clk 0:02:49.8]} 1... d5 {[%clk 0:02:59.5]} 2. c4 {[%clk 0:02:48.5]}
2... Bf5 {[%clk 0:02:59.8]} 3. cxd5 {[%clk 0:02:46.5]} 3... Bxb1 {[%clk
0:02:59.8]} 4. Rxb1 {[%clk 0:02:44]} 4... Qxd5 {[%clk 0:02:59.9]} 5. Qa4+ {[%clk
0:02:36.4]} 5... Nc6 {[%clk 0:02:59.5]} 6. e3 {[%clk 0:02:34]} 6... e5 {[%clk
0:02:57.9]} 7. Nf3 {[%clk 0:02:12.7]} 7... Bb4+ {[%clk 0:02:56.9]} 8. Bd2 {[%clk
0:02:11.3]} 8... Bxd2+ {[%clk 0:02:57.4]} 9. Nxd2 {[%clk 0:02:07.2]} 9... exd4
{[%clk 0:02:57.9]} 10. Bb5 {[%clk 0:01:45.3]} 10... Qxg2 {[%clk 0:02:53.7]} 11.
Bxc6+ {[%clk 0:01:44.7]} 11... bxc6 {[%clk 0:02:53]} 12. Rf1 {[%clk 0:01:32.8]}
12... dxe3 {[%clk 0:02:43.5]} 13. fxe3 {[%clk 0:01:31.6]} 13... Nf6 {[%clk
0:02:33.2]} 14. Qb4 {[%clk 0:01:27.2]} 14... Rd8 {[%clk 0:02:19.1]} 15. Nf3
{[%clk 0:01:22.9]} 15... Rd6 {[%clk 0:02:12.2]} 16. Qb8+ {[%clk 0:01:21]} 16...
Rd8 {[%clk 0:02:10.7]} 17. Qb4 {[%clk 0:01:19.8]} 17... Qg4 {[%clk 0:02:03.5]}
18. Qc5 {[%clk 0:01:16.7]} 18... Rd6 {[%clk 0:01:58.5]} 19. Qxa7 {[%clk
0:01:08.1]} 19... O-O {[%clk 0:01:57.2]} 20. Qxc7 {[%clk 0:01:07.4]} 20... Re6
{[%clk 0:01:55.5]} 21. Ke2 {[%clk 0:01:00.7]} 21... Rxe3+ {[%clk 0:01:52.5]} 22.
Kxe3 {[%clk 0:01:00.1]} 22... Nd5+ {[%clk 0:01:52.4]} 0-1

[Event "Early-Titled-Tuesday-Blitz-February-20-2024"]
[Site "Chess.com"]
[Date "2024.02.20"]
[Round "3"]
[White "mestrefeitosa19"]
[Black "SHIVACalypso"]
[Result "0-1"]
[WhiteElo "2234"]
[BlackElo "2508"]
[TimeControl "180+1"]
[EndTime "8:25:42 PST"]
[Termination "SHIVACalypso won by checkmate"]

1. c4 {[%clk 0:02:56.6]} 1... e5 {[%clk 0:02:55]} 2. Nc3 {[%clk 0:02:56.2]} 2...
Nc6 {[%clk 0:02:55.5]} 3. Nf3 {[%clk 0:02:55.7]} 3... Nf6 {[%clk 0:02:52.2]} 4.
e3 {[%clk 0:02:55.7]} 4... d5 {[%clk 0:02:44.6]} 5. d4 {[%clk 0:02:51.7]} 5...
e4 {[%clk 0:02:37.7]} 6. cxd5 {[%clk 0:02:47]} 6... exf3 {[%clk 0:02:37.7]} 7.
dxc6 {[%clk 0:02:46.8]} 7... bxc6 {[%clk 0:02:32.2]} 8. Qxf3 {[%clk 0:02:45.5]}
8... Nd5 {[%clk 0:02:31.9]} 9. Bc4 {[%clk 0:02:39.4]} 9... Be6 {[%clk
0:02:31.5]} 10. Nxd5 {[%clk 0:02:24.7]} 10... Bxd5 {[%clk 0:02:27.3]} 11. Bxd5
{[%clk 0:02:07.7]} 11... Bb4+ {[%clk 0:02:26.8]} 12. Bd2 {[%clk 0:02:06.1]}
12... Bxd2+ {[%clk 0:02:26.6]} 13. Kxd2 {[%clk 0:02:06.4]} 13... cxd5 {[%clk
0:02:27.5]} 14. Rac1 {[%clk 0:02:02]} 14... Qd6 {[%clk 0:02:27.9]} 15. Rc3
{[%clk 0:01:54.9]} 15... O-O {[%clk 0:02:26.5]} 16. Rhc1 {[%clk 0:01:53.9]}
16... Rab8 {[%clk 0:02:17.5]} 17. R1c2 {[%clk 0:01:50.4]} 17... Rfc8 {[%clk
0:01:57.2]} 18. Qg3 {[%clk 0:01:49.6]} 18... Qb4 {[%clk 0:01:49.5]} 19. Kc1
{[%clk 0:01:41]} 19... a5 {[%clk 0:01:42.6]} 20. a3 {[%clk 0:01:39.6]} 20... Qb5
{[%clk 0:01:38]} 21. Rxc7 {[%clk 0:01:30.3]} 21... Rxc7 {[%clk 0:01:28.3]} 22.
Qxc7 {[%clk 0:01:29.4]} 22... Qf1+ {[%clk 0:01:28]} 23. Kd2 {[%clk 0:01:28.7]}
23... Qxf2+ {[%clk 0:01:28.4]} 24. Kc1 {[%clk 0:01:22.1]} 24... Qe1# {[%clk
0:01:28]} 0-1

[Event "Early-Titled-Tuesday-Blitz-February-20-2024"]
[Site "Chess.com"]
[Date "2024.02.20"]
[Round "3"]
[White "HeroWilczek"]
[Black "wqws"]
[Result "0-1"]
[WhiteElo "2474"]
[BlackElo "2682"]
[TimeControl "180+1"]
[EndTime "8:25:45 PST"]
[Termination "wqws won by resignation"]

1. Nf3 {[%clk 0:03:00.9]} 1... Nf6 {[%clk 0:02:59.5]} 2. e3 {[%clk 0:03:00.1]}
2... g6 {[%clk 0:03:00.4]} 3. c4 {[%clk 0:02:59.6]} 3... Bg7 {[%clk 0:03:01.3]}
4. Nc3 {[%clk 0:03:00.2]} 4... O-O {[%clk 0:03:02.2]} 5. Be2 {[%clk 0:03:00.9]}
5... c5 {[%clk 0:03:02]} 6. O-O {[%clk 0:03:01.4]} 6... b6 {[%clk 0:03:02.6]} 7.
b3 {[%clk 0:03:01.7]} 7... Bb7 {[%clk 0:03:03.1]} 8. Bb2 {[%clk 0:03:02.4]} 8...
d5 {[%clk 0:03:03.5]} 9. Rc1 {[%clk 0:03:00.1]} 9... d4 {[%clk 0:03:00.2]} 10.
Nd5 {[%clk 0:02:40.6]} 10... Nxd5 {[%clk 0:02:56.5]} 11. cxd5 {[%clk 0:02:41.5]}
11... d3 {[%clk 0:02:56.9]} 12. Bxg7 {[%clk 0:02:31.9]} 12... dxe2 {[%clk
0:02:57.1]} 13. Qxe2 {[%clk 0:02:32.8]} 13... Kxg7 {[%clk 0:02:57]} 14. e4
{[%clk 0:02:33.7]} 14... Nd7 {[%clk 0:02:52.3]} 15. d4 {[%clk 0:02:33.3]} 15...
a5 {[%clk 0:02:51.7]} 16. Rfd1 {[%clk 0:02:29]} 16... a4 {[%clk 0:02:51.4]} 17.
Qb2 {[%clk 0:02:28.7]} 17... axb3 {[%clk 0:02:51.1]} 18. dxc5+ {[%clk
0:02:27.3]} 18... Kg8 {[%clk 0:02:49.7]} 19. c6 {[%clk 0:02:22.5]} 19... Nc5
{[%clk 0:02:39.2]} 20. cxb7 {[%clk 0:02:00.6]} 20... Rxa2 {[%clk 0:02:38.9]} 21.
Qe5 {[%clk 0:01:55.3]} 21... Ra7 {[%clk 0:02:28]} 22. d6 {[%clk 0:01:42.8]}
22... Rxb7 {[%clk 0:02:28.1]} 23. h4 {[%clk 0:01:28.4]} 23... Rd7 {[%clk
0:02:18.2]} 24. h5 {[%clk 0:01:19.2]} 24... Rxd6 {[%clk 0:02:16.9]} 25. Rd5
{[%clk 0:01:02.5]} 25... Rxd5 {[%clk 0:02:13.2]} 26. exd5 {[%clk 0:01:03.4]}
26... Nd3 {[%clk 0:02:12.7]} 27. Qc3 {[%clk 0:00:58.7]} 27... Nxc1 {[%clk
0:02:12.8]} 28. Qxc1 {[%clk 0:00:59]} 28... Qxd5 {[%clk 0:02:12.5]} 29. h6
{[%clk 0:00:59.6]} 29... f6 {[%clk 0:02:06.6]} 0-1

[Event "Early-Titled-Tuesday-Blitz-February-20-2024"]
[Site "Chess.com"]
[Date "2024.02.20"]
[Round "3"]
[White "LeoLV10"]
[Black "ElephantChessGenius"]
[Result "0-1"]
[WhiteElo "2496"]
[BlackElo "2324"]
[TimeControl "180+1"]
[EndTime "8:25:49 PST"]
[Termination "ElephantChessGenius won by resignation"]

1. e4 {[%clk 0:02:58.4]} 1... c5 {[%clk 0:02:59.9]} 2. Nf3 {[%clk 0:02:57.9]}
2... Nc6 {[%clk 0:03:00.2]} 3. Bb5 {[%clk 0:02:57]} 3... g5 {[%clk 0:02:58.2]}
4. h3 {[%clk 0:02:53.2]} 4... Bg7 {[%clk 0:02:46.6]} 5. O-O {[%clk 0:02:52.2]}
5... Nd4 {[%clk 0:02:44.7]} 6. Nxd4 {[%clk 0:02:51.3]} 6... cxd4 {[%clk
0:02:45]} 7. c3 {[%clk 0:02:50.1]} 7... h5 {[%clk 0:02:43.1]} 8. d3 {[%clk
0:02:49.2]} 8... g4 {[%clk 0:02:40.3]} 9. hxg4 {[%clk 0:02:43.8]} 9... a6 {[%clk
0:02:40.7]} 10. Ba4 {[%clk 0:02:41.4]} 10... b5 {[%clk 0:02:40.7]} 11. Bb3
{[%clk 0:02:41.6]} 11... d6 {[%clk 0:02:39.5]} 12. gxh5 {[%clk 0:02:40.8]} 12...
Nf6 {[%clk 0:02:38.7]} 13. Bg5 {[%clk 0:02:18.1]} 13... Bg4 {[%clk 0:02:32]} 14.
Qe1 {[%clk 0:02:02.8]} 14... Rxh5 {[%clk 0:02:28.1]} 15. Bf4 {[%clk 0:02:00.4]}
15... Qd7 {[%clk 0:02:23.3]} 16. Bg3 {[%clk 0:01:58.8]} 16... Bf3 {[%clk
0:02:18.6]} 17. Nd2 {[%clk 0:00:13.7]} 17... Rh1+ {[%clk 0:02:09]} 18. Kxh1
{[%clk 0:00:13.9]} 18... Qh3+ {[%clk 0:02:08.6]} 0-1

[Event "Early-Titled-Tuesday-Blitz-February-20-2024"]
[Site "Chess.com"]
[Date "2024.02.20"]
[Round "3"]
[White "carloseduar100"]
[Black "SaiAgni_98"]
[Result "0-1"]
[WhiteElo "2334"]
[BlackElo "2572"]
[TimeControl "180+1"]
[EndTime "8:25:54 PST"]
[Termination "SaiAgni_98 won by resignation"]

1. e4 {[%clk 0:02:55.1]} 1... c6 {[%clk 0:02:57.6]} 2. Nf3 {[%clk 0:02:54.2]}
2... d5 {[%clk 0:02:57.8]} 3. Nc3 {[%clk 0:02:54.5]} 3... dxe4 {[%clk
0:02:56.4]} 4. Nxe4 {[%clk 0:02:54.7]} 4... Nf6 {[%clk 0:02:56.9]} 5. Nxf6+
{[%clk 0:02:55.3]} 5... exf6 {[%clk 0:02:56.9]} 6. d4 {[%clk 0:02:56.2]} 6...
Bd6 {[%clk 0:02:56.9]} 7. c3 {[%clk 0:02:57.1]} 7... O-O {[%clk 0:02:57.1]} 8.
Bd3 {[%clk 0:02:57.8]} 8... Re8+ {[%clk 0:02:57]} 9. Be3 {[%clk 0:02:58.5]} 9...
Nd7 {[%clk 0:02:57.2]} 10. O-O {[%clk 0:02:59]} 10... Nf8 {[%clk 0:02:57.8]} 11.
Re1 {[%clk 0:02:59.5]} 11... h5 {[%clk 0:02:56.3]} 12. h3 {[%clk 0:02:59.6]}
12... Bc7 {[%clk 0:02:53.6]} 13. Qb3 {[%clk 0:02:50.9]} 13... Qd6 {[%clk
0:02:44.6]} 14. Rad1 {[%clk 0:02:51.1]} 14... Be6 {[%clk 0:02:41.5]} 15. Bc4
{[%clk 0:02:51.4]} 15... Bd5 {[%clk 0:02:29]} 16. Bxd5 {[%clk 0:02:50.6]} 16...
cxd5 {[%clk 0:02:29.3]} 17. Qxb7 {[%clk 0:02:36.9]} 17... Reb8 {[%clk
0:02:24.4]} 18. Qxa8 {[%clk 0:02:31.4]} 18... Rxa8 {[%clk 0:02:24.5]} 19. Re2
{[%clk 0:02:24.8]} 19... Qa6 {[%clk 0:02:11.2]} 20. Rde1 {[%clk 0:02:20.2]}
20... Qxa2 {[%clk 0:02:11.3]} 21. Nh4 {[%clk 0:02:19.2]} 21... Ne6 {[%clk
0:01:58.9]} 22. Nf5 {[%clk 0:02:18.4]} 22... Rb8 {[%clk 0:01:58.4]} 23. Bc1
{[%clk 0:02:17.1]} 23... Kf8 {[%clk 0:01:53.3]} 24. Ne3 {[%clk 0:02:06.1]} 24...
Nf4 {[%clk 0:01:50.5]} 25. Rd2 {[%clk 0:02:02.1]} 25... Re8 {[%clk 0:01:50.3]}
26. Red1 {[%clk 0:01:56.6]} 26... Qb1 {[%clk 0:01:44.4]} 27. Kh2 {[%clk
0:01:20.2]} 27... Ne2+ {[%clk 0:01:34.3]} 0-1

[Event "Early-Titled-Tuesday-Blitz-February-20-2024"]
[Site "Chess.com"]
[Date "2024.02.20"]
[Round "3"]
[White "Pikku_Myy73"]
[Black "WindWhistler11"]
[Result "0-1"]
[WhiteElo "2201"]
[BlackElo "2482"]
[TimeControl "180+1"]
[EndTime "8:25:55 PST"]
[Termination "WindWhistler11 won by resignation"]

1. d4 {[%clk 0:03:00.9]} 1... Nf6 {[%clk 0:02:51.2]} 2. c4 {[%clk 0:03:00.8]}
2... e6 {[%clk 0:02:51]} 3. Nf3 {[%clk 0:03:00.4]} 3... c5 {[%clk 0:02:51.9]} 4.
d5 {[%clk 0:03:00]} 4... exd5 {[%clk 0:02:52.8]} 5. cxd5 {[%clk 0:03:00.6]} 5...
Bd6 {[%clk 0:02:53.7]} 6. Nc3 {[%clk 0:02:59.8]} 6... O-O {[%clk 0:02:54.3]} 7.
e3 {[%clk 0:02:57.8]} 7... Re8 {[%clk 0:02:54.8]} 8. Be2 {[%clk 0:02:57.9]} 8...
Bc7 {[%clk 0:02:54.3]} 9. O-O {[%clk 0:02:57.7]} 9... d6 {[%clk 0:02:54.5]} 10.
a4 {[%clk 0:02:31.8]} 10... a6 {[%clk 0:02:53.8]} 11. Nd2 {[%clk 0:02:28.1]}
11... Nbd7 {[%clk 0:02:53.4]} 12. Nc4 {[%clk 0:02:20]} 12... Rb8 {[%clk
0:02:53.1]} 13. a5 {[%clk 0:02:12.3]} 13... Nf8 {[%clk 0:02:50.4]} 14. Bd3
{[%clk 0:02:03.6]} 14... Bd7 {[%clk 0:02:49.3]} 15. e4 {[%clk 0:01:59.9]} 15...
Bb5 {[%clk 0:02:49.3]} 16. Re1 {[%clk 0:01:57]} 16... Bxc4 {[%clk 0:02:48.1]}
17. Bxc4 {[%clk 0:01:57.9]} 17... Bxa5 {[%clk 0:02:48]} 18. Bd3 {[%clk
0:01:50.9]} 18... Ng6 {[%clk 0:02:43.3]} 19. Qa4 {[%clk 0:01:28.4]} 19... Bxc3
{[%clk 0:02:40]} 20. bxc3 {[%clk 0:01:29.3]} 20... Nxd5 {[%clk 0:02:39.8]} 21.
Qb3 {[%clk 0:01:19]} 21... Ndf4 {[%clk 0:02:34.9]} 22. Bc4 {[%clk 0:01:13.5]}
22... Qf6 {[%clk 0:02:29.9]} 23. Ra2 {[%clk 0:01:03]} 23... b5 {[%clk
0:02:14.9]} 24. Bf1 {[%clk 0:01:02.6]} 24... d5 {[%clk 0:02:12.5]} 25. g3 {[%clk
0:00:55.8]} 25... c4 {[%clk 0:02:03.4]} 26. Qd1 {[%clk 0:00:49.4]} 26... Nd3
{[%clk 0:02:00]} 27. Bxd3 {[%clk 0:00:48.4]} 27... cxd3 {[%clk 0:02:00.9]} 28.
Qxd3 {[%clk 0:00:46.1]} 28... Ne5 {[%clk 0:02:01.3]} 0-1